Workbook

Sheet прилож. № 7
A1: Приложение № 2
A2: к решению Думы Ушаковского муниципального образования от 26.04.2018 г. № 95 "О внесении изменений в решение Думы Ушаковского муниципального образования № 66 от 08.12.2017 г. "Об утверждении бюджета на 2018 г. и на плановый период 2019-2020 годов"
A4: РАСПРЕДЕЛЕНИЕ БЮДЖЕТНЫХ АССИГНОВАНИЙ ПО РАЗДЕЛАМ, ПОДРАЗДЕЛАМ, ЦЕЛЕВЫМ СТАТЬЯМ (МУНИЦИПАЛЬНЫМ ПРОГРАММАМ И НЕПРОГРАММНЫМ НАПРАВЛЕНИЯМ ДЕЯТЕЛЬНОСТИ) И ВИДАМ РАСХОДОВ КЛАССИФИКАЦИИ РАСХОДОВ БЮДЖЕТОВ НА 2018 ГОД
A6: Наименование | B6: РЗ | C6: Пр | D6: КЦСР | E6: КВР | F6: Сумма (тыс. руб)
A7: В С Е Г О | F7: =F8+F89+F85+F94+F103+F120+F167+F185+F202 -> 85514.4
A8: ОБЩЕГОСУДАРСТВЕННЫЕ ВОПРОСЫ | B8: 01 | C8: 00 | D8: 00.0.00.00000 | E8: 000 | F8: =F9+F40+F78+F57+F32 -> 19780.3
A9: Функционирование высшего должностного лица субъекта Российской Федерации и муниципального образования | B9: 01 | C9: 02 | D9: 00.0.00.00000 | E9: 000 | F9: =F10 -> 1756.3
A10: Непрограммные расходы органов местного самоуправления | B10: 01 | C10: 02 | D10: 91.0.00.00000 | E10: 000 | F10: =F11+F18 -> 1756.3
A11: Непрограммные расходы органов местного самоуправления за счет средств местного бюджета | B11: 01 | C11: 02 | D11: 91.1.00.00000 | E11: 000 | F11: =F12 -> 1756.3
A12: Осуществление органами местного самоуправления полномочий местного значения поселения | B12: 01 | C12: 02 | D12: 91.1.00.60000 | E12: 000 | F12: =F13 -> 1756.3
A13: Обеспечение деятельности в сфере установленных функций | B13: 01 | C13: 02 | D13: 91.1.00.60001 | E13: 000 | F13: =F16+F17 -> 1756.3
A14: Расходы на выплаты персоналу в целях обеспечения выполнения функций государственными (муниципальными) органами, казенными учреждениями, органами управления государственными внебюджетными фондами | B14: 01 | C14: 02 | D14: 91.1.00.60001 | E14: 100 | F14: =F15 -> 1756.3
A15: Расходы на выплаты персоналу государственных (муниципальных) органов | B15: 01 | C15: 02 | D15: 91.1.00.60001 | E15: 120 | F15: =F16+F17 -> 1756.3
A16: Фонд оплаты труда государственных (муниципальных) органов | B16: 01 | C16: 02 | D16: 91.1.00.60001 | E16: 121 | F16: 1413.1
A17: Взносы по обязательному социальному страхованию на выплаты денежного содержания и иные выплаты работникам государственных (муниципальных) органов | B17: 01 | C17: 02 | D17: 91.1.00.60001 | E17: 129 | F17: 343.2
A18: Непрограммные расходы органов местного самоуправления за счет средств областного бюджета | B18: 01 | C18: 02 | D18: 91.1.00.60003 | E18: 000 | F18: =F19 -> 0.0
A19: Субсидии на выравнивание обеспеченности муниципальных образований Иркутской области по реализации ими их отдельных расходных обязательств | B19: 01 | C19: 02 | D19: 91.1.00.60004 | E19: 000 | F19: =F20 -> 0.0
A20: Расходы на выплаты персоналу в целях обеспечения выполнения функций государственными (муниципальными) органами, казенными учреждениями, органами управления государственными внебюджетными фондами | B20: 01 | C20: 02 | D20: 91.1.00.60005 | E20: 100 | F20: =F21 -> 0.0
A21: Расходы на выплаты персоналу государственных (муниципальных) органов | B21: 01 | C21: 02 | D21: 91.1.00.60006 | E21: 120 | F21: =F22+F23 -> 0.0
A22: Фонд оплаты труда государственных (муниципальных) органов | B22: 01 | C22: 02 | D22: 91.1.00.60007 | E22: 121 | F22: 0.0
A23: Взносы по обязательному социальному страхованию на выплаты денежного содержания и иные выплаты работникам государственных (муниципальных) органов | B23: 01 | C23: 02 | D23: 91.1.00.60008 | E23: 129 | F23: 0.0
A24: Функционирование Правительства Российской Федерации, высших исполнительных органов государственной власти субъектов РФ, местных администраций | B24: 01 | C24: 04 | D24: 91.1.00.60009 | E24: 000 | F24: =F40+F25 -> 16957.9
A25: Программные расходы | B25: 01 | C25: 04 | D25: 91.1.00.60010 | E25: 000 | F25: =F26 -> 0.0
A26: Муниципальная программа "Подготовка к празднованию 70-летия победы" | B26: 01 | C26: 04 | D26: 91.1.00.60011 | E26: 000 | F26: 0.0
A27: Реализация мероприятий муниципальной программы за счет средств местного бюджета | B27: 01 | C27: 04 | D27: 91.1.00.60012 | E27: 000 | F27: 0.0
A28: Мероприятия, связанные, с подготовкой к празднованию 70-летия победы | B28: 01 | C28: 04 | D28: 91.1.00.60013 | E28: 000 | F28: 0.0
A29: Закупка товаров, работ и услуг для обеспечения государственных (муниципальных) нужд | B29: 01 | C29: 04 | D29: 91.1.00.60014 | E29: 200 | F29: 0.0
A30: Иные закупки товаров, работ и услуг для обеспечения государственных (муниципальных) нужд | B30: 01 | C30: 04 | D30: 91.1.00.60015 | E30: 240 | F30: 0.0
A31: Прочая закупка товаров, работ и услуг для обеспечения государственных (муниципальных) нужд | B31: 01 | C31: 04 | D31: 91.1.00.60016 | E31: 244
A32: Функционирование законодательных (представительных) органов государственной власти и представительных органов муниципальных образований | B32: 01 | C32: 03 | D32: 91.1.00.00000 | E32: 000 | F32: 765.4
A33: Непрограммные расходы органов местного самоуправления за счет средств местного бюджета | B33: 01 | C33: 03 | D33: 91.1.00.00000 | E33: 000 | F33: 765.4
A34: Осуществление органами местного самоуправления полномочий местного значения поселения | B34: 01 | C34: 03 | D34: 91.1.00.60000 | E34: 000 | F34: 765.4
A35: Обеспечение деятельности в сфере установленных функций | B35: 01 | C35: 03 | D35: 91.1.00.60001 | E35: 000 | F35: 765.4
A36: Расходы на выплаты персоналу в целях обеспечения выполнения функций государственными (муниципальными) органами, казенными учреждениями, органами управления государственными внебюджетными фондами | B36: 01 | C36: 03 | D36: 91.1.00.60001 | E36: 100 | F36: 765.4
A37: Расходы на выплаты персоналу государственных (муниципальных) органов | B37: 01 | C37: 03 | D37: 91.1.00.60001 | E37: 120 | F37: =F38+F39 -> 765.4
A38: Фонд оплаты труда государственных (муниципальных) органов | B38: 01 | C38: 03 | D38: 91.1.00.60001 | E38: 121 | F38: 587.9
A39: Взносы по обязательному социальному страхованию на выплаты денежного содержания и иные выплаты работникам государственных (муниципальных) органов | B39: 01 | C39: 03 | D39: 91.1.00.60001 | E39: 129 | F39: 177.5
A40: Непрограммные расходы органов местного самоуправления | B40: 01 | C40: 04 | D40: 91.0.00.00000 | E40: 000 | F40: =F41+F57+F56 -> 16957.9
A41: Непрограммные расходы органов местного самоуправления за счет средств местного бюджета | B41: 01 | C41: 04 | D41: 91.1.00.00000 | E41: 000 | F41: =F42 -> 16831.9
A42: Осуществление органами местного самоуправления полномочий местного значения поселения | B42: 01 | C42: 04 | D42: 91.1.00.60000 | E42: 000 | F42: =F43 -> 16831.9
A43: Обеспечение деятельности в сфере установленных функций | B43: 01 | C43: 04 | D43: 91.1.00.60001 | E43: 000 | F43: =F44+F48+F51 -> 16831.9
A44: Расходы на выплаты персоналу в целях обеспечения выполнения функций государственными (муниципальными) органами, казенными учреждениями, органами управления государственными внебюджетными фондами | B44: 01 | C44: 04 | D44: 91.1.00.60001 | E44: 100 | F44: =F45 -> 13064.2
A45: Расходы на выплаты персоналу государственных (муниципальных) органов | B45: 01 | C45: 04 | D45: 91.1.00.60001 | E45: 120 | F45: =F46+F47 -> 13064.2
A46: Фонд оплаты труда государственных (муниципальных) органов | B46: 01 | C46: 04 | D46: 91.1.00.60001 | E46: 121 | F46: 10034.0
A47: Взносы по обязательному социальному страхованию на выплаты денежного содержания и иные выплаты работникам государственных (муниципальных) органов | B47: 01 | C47: 04 | D47: 91.1.00.60001 | E47: 129 | F47: 3030.2
A48: Закупка товаров, работ и услуг для обеспечения государственных (муниципальных) нужд | B48: 01 | C48: 04 | D48: 91.1.00.60001 | E48: 200 | F48: =F49 -> 3716.7
A49: Иные закупки товаров, работ и услуг для обеспечения государственных (муниципальных) нужд | B49: 01 | C49: 04 | D49: 91.1.00.60001 | E49: 240 | F49: =F50 -> 3716.7
A50: Прочая закупка товаров, работ и услуг для обеспечения государственных (муниципальных) нужд | B50: 01 | C50: 04 | D50: 91.1.00.60001 | E50: 244 | F50: 3716.7 | H50: -125300
A51: Иные бюджетные ассигнования | B51: 01 | C51: 04 | D51: 91.1.00.60001 | E51: 850 | F51: =F52+F54+F55 -> 51.0
A52: Исполнение судебных актов | B52: 01 | C52: 04 | D52: 91.1.00.60001 | E52: 830 | F52: =F53 -> 0.0
A53: Исполнение судебных актов Российской Федерации и мировых соглашений по возмещению вреда, причиненного в результате незаконных действий (бездействия), органов местного самоуправления либо должностных лиц этих органов, а также в результате деятельности казенных учреждений | B53: 01 | C53: 04 | D53: 91.1.00.60001 | E53: 831
A54: Уплата прочих налогов, сборов | B54: 01 | C54: 04 | D54: 91.1.00.60001 | E54: 852 | F54: 16.0
A55: Уплата иных платежей | B55: 01 | C55: 04 | D55: 91.1.00.60001 | E55: 853 | F55: 35.0
A56: Исполнение судебных актов Российской Федерации и мировых соглашений по возмещению вреда, причиненного в результате незаконных действий (бездействия) органов государственной власти (государственных органов), органов местного самоуправления либо должностных лиц этих органов, а также в результате деятельности казенных учреждений | B56: 01 | C56: 04 | D56: 91.1.00.60001 | E56: 831 | F56: 125.3 | H56: 125.3
A57: Непрограммные расходы органов местного самоуправления за счет средств областного бюджета | B57: 01 | C57: 04 | D57: 91.2.00.00000 | E57: 000 | F57: =F66+F58 -> 0.7
A58: Субсидии на выравнивание обеспеченности муниципальных образований Иркутской области по реализации ими их отдельных расходных обязательств | B58: 01 | C58: 04 | D58: 91.2.00.72600 | E58: 000 | F58: =F59+F63 -> 0.0
A59: Расходы на выплаты персоналу в целях обеспечения выполнения функций государственными (муниципальными) органами, казенными учреждениями, органами управления государственными внебюджетными фондами | B59: 01 | C59: 04 | D59: 91.2.00.72600 | E59: 100 | F59: =F60 -> 0.0
A60: Расходы на выплаты персоналу государственных (муниципальных) органов | B60: 01 | C60: 04 | D60: 91.2.00.72600 | E60: 120 | F60: =F61+F62 -> 0.0
A61: Фонд оплаты труда государственных (муниципальных) органов | B61: 01 | C61: 04 | D61: 91.2.00.72600 | E61: 121 | F61: 0.0
A62: Взносы по обязательному социальному страхованию на выплаты денежного содержания и иные выплаты работникам государственных (муниципальных) органов | B62: 01 | C62: 04 | D62: 91.2.00.72600 | E62: 129 | F62: 0.0
A63: Иные закупки товаров, работ и услуг для обеспечения государственных (муниципальных) нужд | B63: 01 | C63: 04 | D63: 91.2.00.72600 | E63: 200 | F63: =F64 -> 0.0
A64: Прочая закупка товаров, работ и услуг для обеспечения государственных (муниципальных) нужд | B64: 01 | C64: 04 | D64: 91.2.00.72600 | E64: 240 | F64: =F65 -> 0.0
A65: Прочая закупка товаров, работ и услуг для обеспечения государственных (муниципальных) нужд | B65: 01 | C65: 04 | D65: 91.2.00.72600 | E65: 244 | F65: 0.0
A66: Субвенции на осуществление областного государственного полномочия по определению перечня должностных лиц органов местного самоуправления, уполномоченных составлять протоколы об административных правонарушениях, предусмотренных отдельными законами Иркутской области об административной ответственности | B66: 01 | C66: 04 | D66: 91.2.00.73150 | E66: 000 | F66: =F69 -> 0.7
A67: Закупка товаров, работ и услуг для обеспечения государственных (муниципальных) нужд | B67: 01 | C67: 04 | D67: 91.2.00.73150 | E67: 200 | F67: =F68 -> 0.7
A68: Иные закупки товаров, работ и услуг для обеспечения государственных (муниципальных) нужд | B68: 01 | C68: 04 | D68: 91.2.00.73150 | E68: 240 | F68: =F69 -> 0.7
A69: Прочая закупка товаров, работ и услуг для обеспечения государственных (муниципальных) нужд | B69: 01 | C69: 04 | D69: 91.2.00.73150 | E69: 244 | F69: 0.7
A70: Обеспечение проведения выборов и референдумов | B70: 01 | C70: 07 | D70: 00.0.00.00000 | E70: 000 | F70: =F71 -> 0.0
A71: Непрограммные расходы органов местного самоуправления | B71: 01 | C71: 07 | D71: 91.0.00.00000 | E71: 000 | F71: 0.0
A72: Непрограммные расходы органов местного самоуправления за счет средств местного бюджета | B72: 01 | C72: 07 | D72: 91.1.00.00000 | E72: 000 | F72: 0.0
A73: Осуществление органами местного самоуправления полномочий местного значения поселения | B73: 01 | C73: 07 | D73: 91.1.00.60000 | E73: 000 | F73: 0.0
A74: Проведения выборов и референдумов | B74: 01 | C74: 07 | D74: 91.1.00.60003 | E74: 000 | F74: 0.0
A75: Закупка товаров, работ и услуг для обеспечения государственных (муниципальных) нужд | B75: 01 | C75: 07 | D75: 91.1.00.60003 | E75: 200 | F75: 0.0
A76: Иные закупки товаров, работ и услуг для обеспечения государственных (муниципальных) нужд | B76: 01 | C76: 07 | D76: 91.1.00.60003 | E76: 240 | F76: 0.0
A77: Прочая закупка товаров, работ и услуг для обеспечения государственных (муниципальных) нужд | B77: 01 | C77: 07 | D77: 91.1.00.60003 | E77: 244 | F77: 0.0
A78: Резервные фонды | B78: 01 | C78: 11 | D78: 00.0.00.00000 | E78: 000 | F78: =F79 -> 300.0
A79: Непрограммные расходы органов местного самоуправления | B79: 01 | C79: 11 | D79: 91.1.00.00000 | E79: 000 | F79: 300.0
A80: Непрограммные расходы органов местного самоуправления за счет средств местного бюджета | B80: 01 | C80: 11 | D80: 91.1.00.00000 | E80: 000 | F80: =F81 -> 300.0
A81: Осуществление органами местного самоуправления полномочий местного значения поселения | B81: 01 | C81: 11 | D81: 91.1.00.60000 | E81: 000 | F81: 300.0
A82: Резервный фонд администрации муниципального образования | B82: 01 | C82: 11 | D82: 91.1.00.60004 | E82: 000 | F82: 300.0
A83: Иные бюджетные ассигнования | B83: 01 | C83: 11 | D83: 91.1.00.60004 | E83: 800 | F83: 300.0
A84: Резервные средства | B84: 01 | C84: 11 | D84: 91.1.00.60004 | E84: 870 | F84: 300.0
A85: Другие общегосударственные вопросы | B85: 01 | C85: 13 | D85: 91.1.00.00000 | E85: 000 | F85: =F86 -> 2654.0
A86: Расходы на выплату персоналу в целях обеспечения выполнения функций государственными (муниципальными) органами, казенными учреждениями, органами управления государственными внебюджетными фондами | B86: 01 | C86: 13 | D86: 91.1.00.60002 | E86: 100 | F86: =F87+F88 -> 2654.0
A87: Фонд оплаты труда казенных учреждений и взносы по обязательному социальному страхованию | B87: 01 | C87: 13 | D87: 91.1.00.60002 | E87: 111 | F87: 2088.1
A88: Взносы по обязательному социальному страхованию на выплаты по оплате труда работников и иные выплаты работникам учреждений | B88: 01 | C88: 13 | D88: 91.1.00.60002 | E88: 119 | F88: 565.9
A89: НАЦИОНАЛЬНАЯ ОБОРОНА | B89: 02 | C89: 00 | D89: 00.0.00.00000 | E89: 000 | F89: =F90+F91+F92 -> 327.2
A90: Мобилизационная и вневойсковая подготовка | B90: 02 | C90: 03 | D90: 91.3.00.51180 | E90: 121 | F90: 228.3
A91: Мобилизационная и вневойсковая подготовка | B91: 02 | C91: 03 | D91: 91.3.00.51180 | E91: 129 | F91: 68.9
A92: Закупка товаров, работ и услуг для обеспечения государственных (муниципальных) нужд | B92: 02 | C92: 03 | D92: 91.3.00.51180 | E92: 200 | F92: 30.0
A93: Иные закупки товаров, работ и услуг для обеспечения государственных (муниципальных) нужд | B93: 02 | C93: 03 | D93: 91.3.00.51180 | E93: 240 | F93: 30.0
A94: НАЦИОНАЛЬНАЯ БЕЗОПАСНОСТЬ И ПРАВООХРАНИТЕЛЬНАЯ ДЕЯТЕЛЬНОСТЬ | B94: 03 | C94: 00 | D94: 00.0.00.00000 | E94: 000 | F94: =F95 -> 350.0
A95: Обеспечение пожарной безопасности | B95: 03 | C95: 10 | D95: 00.0.00.00000 | E95: 000 | F95: 350.0
A96: Непрограммные расходы органов местного самоуправления | B96: 03 | C96: 10 | D96: 91.0.00.00000 | E96: 000 | F96: 350.0
A97: Непрограммные расходы органов местного самоуправления за счет средств местного бюджета | B97: 03 | C97: 10 | D97: 91.1.00.00000 | E97: 000 | F97: 350.0
A98: Осуществление органами местного самоуправления полномочий местного значения поселения | B98: 03 | C98: 10 | D98: 91.1.00.60000 | E98: 000 | F98: 350.0
A99: Реализация других функций, связанных с обеспечением национальной безопасности и правоохранительной деятельности | B99: 03 | C99: 10 | D99: 91.1.00.60007 | E99: 000 | F99: 350.0
A100: Закупка товаров, работ и услуг для обеспечения государственных (муниципальных) нужд | B100: 03 | C100: 10 | D100: 91.1.00.60007 | E100: 200 | F100: 350.0
A101: Иные закупки товаров, работ и услуг для обеспечения государственных (муниципальных) нужд | B101: 03 | C101: 10 | D101: 91.1.00.60007 | E101: 240 | F101: 350.0
A102: Прочая закупка товаров, работ и услуг для обеспечения государственных (муниципальных) нужд | B102: 03 | C102: 10 | D102: 91.1.00.60007 | E102: 244 | F102: 350.0
A103: НАЦИОНАЛЬНАЯ ЭКОНОМИКА | B103: 04 | C103: 00 | D103: 00.0.00.00000 | E103: 000 | F103: =F104+F112 -> 18296.6
A104: Дорожное хозяйство (дорожные фонды) | B104: 04 | C104: 09 | D104: 00.0.00.00000 | E104: 000 | F104: =F105 -> 7593.7
A105: Непрограммные расходы органов местного самоуправления | B105: 04 | C105: 09 | D105: 91.0.00.00000 | E105: 000 | F105: 7593.7
A106: Непрограммные расходы органов местного самоуправления за счет средств местного бюджета | B106: 04 | C106: 09 | D106: 91.1.00.00000 | E106: 000 | F106: 7593.7
A107: Осуществление органами местного самоуправления полномочий местного значения поселения | B107: 04 | C107: 09 | D107: 91.1.00.60000 | E107: 000 | F107: 7593.7
A108: Иные мероприятия и сфере установленных функций | B108: 04 | C108: 09 | D108: 91.1.00.60011 | E108: 000 | F108: 7593.7
A109: Закупка товаров, работ и услуг для обеспечения государственных (муниципальных) нужд | B109: 04 | C109: 09 | D109: 91.1.00.60011 | E109: 200 | F109: 7593.7
A110: Иные закупки товаров, работ и услуг для обеспечения государственных (муниципальных) нужд | B110: 04 | C110: 09 | D110: 91.1.00.60011 | E110: 240 | F110: 7593.7
A111: Прочая закупка товаров, работ и услуг для обеспечения государственных (муниципальных) нужд | B111: 04 | C111: 09 | D111: 91.1.00.60011 | E111: 244 | F111: 7593.7
A112: Другие вопросы в области национальной экономике | B112: 04 | C112: 12 | D112: 00.0.00.00000 | E112: 000 | F112: =F113 -> 10702.9
A113: Непрограммные расходы органов местного самоуправления | B113: 04 | C113: 12 | D113: 91.0.00.00000 | E113: 000 | F113: 10702.9
A114: Непрограммные расходы органов местного самоуправления за счет средств местного бюджета | B114: 04 | C114: 12 | D114: 91.1.00.00000 | E114: 000 | F114: 10702.9
A115: Осуществление органами местного самоуправления полномочий местного значения поселения | B115: 04 | C115: 12 | D115: 91.1.00.60000 | E115: 000 | F115: 10702.9
A116: Иные мероприятия и сфере установленных функций | B116: 04 | C116: 12 | D116: 91.1.00.60011 | E116: 000 | F116: 10702.9
A117: Закупка товаров, работ и услуг для обеспечения государственных (муниципальных) нужд | B117: 04 | C117: 12 | D117: 91.1.00.60011 | E117: 200 | F117: 10702.9
A118: Иные закупки товаров, работ и услуг для обеспечения государственных (муниципальных) нужд | B118: 04 | C118: 12 | D118: 91.1.00.60011 | E118: 240 | F118: 10702.9
A119: Прочая закупка товаров, работ и услуг для обеспечения государственных (муниципальных) нужд | B119: 04 | C119: 12 | D119: 91.1.00.60011 | E119: 244 | F119: =2000+10733.2-450-780.3-800 -> 10702.9 | H119: 450-780,3-800
A120: ЖИЛИЩНО-КОММУНАЛЬНОЕ ХОЗЯЙСТВО | B120: 05 | C120: 00 | D120: 00.0.00.00000 | E120: 000 | F120: =F121+F129+F137 -> 27555.2
A121: Жилищное хозяйство | B121: 05 | C121: 01 | D121: 00.0.00.00000 | E121: 000 | F121: =F122 -> 6040.0
A122: Непрограммные расходы органов местного самоуправления | B122: 05 | C122: 01 | D122: 91.0.00.00000 | E122: 000 | F122: 6040.0
A123: Непрограммные расходы органов местного самоуправления за счет средств местного бюджета | B123: 05 | C123: 01 | D123: 91.1.00.00000 | E123: 000 | F123: 6040.0
A124: Осуществление органами местного самоуправления полномочий местного значения поселения | B124: 05 | C124: 01 | D124: 91.1.00.60000 | E124: 000 | F124: 6040.0
A125: Текущий ремонт в сфере установленных функций | B125: 05 | C125: 01 | D125: 91.1.00.60009 | E125: 000 | F125: 6040.0
A126: Закупка товаров, работ и услуг для обеспечения государственных (муниципальных) нужд | B126: 05 | C126: 01 | D126: 91.1.00.60009 | E126: 200 | F126: 6040.0
A127: Иные закупки товаров, работ и услуг для обеспечения государственных (муниципальных) нужд | B127: 05 | C127: 01 | D127: 91.1.00.60009 | E127: 240 | F127: 6040.0
A128: Прочая закупка товаров, работ и услуг для обеспечения государственных (муниципальных) нужд | B128: 05 | C128: 01 | D128: 91.1.00.60009 | E128: 244 | F128: =40+6000 -> 6040.0
A129: Коммунальное хозяйство | B129: 05 | C129: 02 | D129: 00.0.00.00000 | E129: 000 | F129: =F130 -> 8400.3
A130: Непрограммные расходы органов местного самоуправления | B130: 05 | C130: 02 | D130: 91.0.00.00000 | E130: 000 | F130: =F132 -> 8400.3
A131: Непрограммные расходы органов местного самоуправления за счет средств местного бюджета | B131: 05 | C131: 02 | D131: 91.1.00.00000 | E131: 000 | F131: =F132 -> 8400.3
A132: Осуществление органами местного самоуправления полномочий местного значения поселения | B132: 05 | C132: 02 | D132: 91.1.00.60000 | E132: 000 | F132: =F133 -> 8400.3
A133: Иные мероприятия и сфере установленных функций | B133: 05 | C133: 02 | D133: 91.1.00.60011 | E133: 000 | F133: =F134 -> 8400.3
A134: Закупка товаров, работ и услуг для обеспечения государственных (муниципальных) нужд | B134: 05 | C134: 02 | D134: 91.1.00.60011 | E134: 200 | F134: =F135 -> 8400.3
A135: Иные закупки товаров, работ и услуг для обеспечения государственных (муниципальных) нужд | B135: 05 | C135: 02 | D135: 91.1.00.60011 | E135: 240 | F135: =F136 -> 8400.3
A136: Прочая закупка товаров, работ и услуг для обеспечения государственных (муниципальных) нужд | B136: 05 | C136: 02 | D136: 91.1.00.60011 | E136: 244 | F136: =7400+1000+0.3 -> 8400.3
A137: Благоустройство | B137: 05 | C137: 03 | D137: 00.0.00.00000 | E137: 000 | F137: =F138 -> 13114.9
A138: Непрограммные расходы органов местного самоуправления | B138: 05 | C138: 03 | D138: 91.0.00.00000 | E138: 000 | F138: =F139 -> 13114.9
A139: Непрограммные расходы органов местного самоуправления за счет средств местного бюджета | B139: 05 | C139: 03 | D139: 91.1.00.00000 | E139: 000 | F139: =F140 -> 13114.9
A140: Осуществление органами местного самоуправления полномочий местного значения поселения | B140: 05 | C140: 03 | D140: 91.1.00.60000 | E140: 000 | F140: =F141 -> 13114.9
A141: Мероприятия в области жилищно-коммунального хозяйства | B141: 05 | C141: 03 | D141: 91.1.00.60100 | E141: 000 | F141: =F142+F148+F166 -> 13114.9
A142: Уличное освещение | B142: 05 | C142: 03 | D142: 91.1.00.60101 | E142: 000 | F142: =F143+F146 -> 2362.2
A143: Закупка товаров, работ и услуг для обеспечения государственных (муниципальных) нужд | B143: 05 | C143: 03 | D143: 91.1.00.60101 | E143: 200 | F143: =F144 -> 2362.2
A144: Иные закупки товаров, работ и услуг для обеспечения государственных (муниципальных) нужд | B144: 05 | C144: 03 | D144: 91.1.00.60101 | E144: 240 | F144: =F145 -> 2362.2
A145: Прочая закупка товаров, работ и услуг для обеспечения государственных (муниципальных) нужд | B145: 05 | C145: 03 | D145: 91.1.00.60101 | E145: 244 | F145: =1362.2+600+400 -> 2362.2
A146: Иные бюджетные ассигнования | B146: 05 | C146: 03 | D146: 91.1.00.60101 | E146: 800 | F146: =F147 -> 0.0
A147: Уплата иных платежей | B147: 05 | C147: 03 | D147: 91.1.00.60001 | E147: 853 | F147: 0.0
A148: Прочие мероприятия по благоустройству городских округов и поселений | B148: 05 | C148: 03 | D148: 91.1.00.60105 | E148: 000 | F148: =F149 -> 9972.4
A149: Закупка товаров, работ и услуг для обеспечения государственных (муниципальных) нужд | B149: 05 | C149: 03 | D149: 91.1.00.60105 | E149: 200 | F149: =F150 -> 9972.4
A150: Иные закупки товаров, работ и услуг для обеспечения государственных (муниципальных) нужд | B150: 05 | C150: 03 | D150: 91.1.00.60105 | E150: 240 | F150: =F151 -> 9972.4
A151: Прочая закупка товаров, работ и услуг для обеспечения государственных (муниципальных) нужд | B151: 05 | C151: 03 | D151: 91.1.00.60105 | E151: 244 | F151: =7472.4+250+2250 -> 9972.4 | H151: 2250
A152: Реализация мероприятий перечня проектов народных инициатив за счет средств местного бюджета | B152: 05 | C152: 03 | D152: 91.1.00.60106 | E152: 000 | F152: =F153 -> 0.0
A153: Закупка товаров, работ и услуг для обеспечения государственных (муниципальных) нужд | B153: 05 | C153: 03 | D153: 91.1.00.60107 | E153: 200 | F153: =F154 -> 0.0
A154: Иные закупки товаров, работ и услуг для обеспечения государственных (муниципальных) нужд | B154: 05 | C154: 03 | D154: 91.1.00.60108 | E154: 240 | F154: =F155 -> 0.0
A155: Прочая закупка товаров, работ и услуг для обеспечения государственных (муниципальных) нужд | B155: 05 | C155: 03 | D155: 91.1.00.60109 | E155: 244
A156: Непрограммные расходы органов местного самоуправления за счет средств областного бюджета | B156: 05 | C156: 03 | D156: 91.1.00.60110 | E156: 000 | F156: =F157+F161 -> 0.0
A157: Субсидии на реализацию мероприятий перечня проектов народных инициатив за счет областного бюджета | B157: 05 | C157: 03 | D157: 91.1.00.60111 | E157: 000 | F157: =F158 -> 0.0
A158: Закупка товаров, работ и услуг для обеспечения государственных (муниципальных) нужд | B158: 05 | C158: 03 | D158: 91.1.00.60112 | E158: 200 | F158: =F159 -> 0.0
A159: Иные закупки товаров, работ и услуг для обеспечения государственных (муниципальных) нужд | B159: 05 | C159: 03 | D159: 91.1.00.60113 | E159: 240 | F159: =F160 -> 0.0
A160: Прочая закупка товаров, работ и услуг для обеспечения государственных (муниципальных) нужд | B160: 05 | C160: 03 | D160: 91.1.00.60114 | E160: 244
A161: Субсидии на выравнивание обеспеченности муниципальных образований Иркутской области по реализации ими их отдельных расходных обязательств | B161: 05 | C161: 03 | D161: 91.1.00.60115 | E161: 000 | F161: =F162 -> 0.0
A162: Закупка товаров, работ и услуг для обеспечения государственных (муниципальных) нужд | B162: 05 | C162: 03 | D162: 91.1.00.60116 | E162: 200 | F162: =F163 -> 0.0
A163: Иные закупки товаров, работ и услуг для обеспечения государственных (муниципальных) нужд | B163: 05 | C163: 03 | D163: 91.1.00.60117 | E163: 240 | F163: =F164 -> 0.0
A164: Прочая закупка товаров, работ и услуг для обеспечения государственных (муниципальных) нужд | B164: 05 | C164: 03 | D164: 91.1.00.60118 | E164: 244
A165: Субсидии юридическим лицам (кроме некоммерческих организаций), индивидуальным предпринимателям, физическим лицам – производителям товаров, работ, услуг | B165: 05 | C165: 03 | D165: 91.1.00.60100 | E165: 810 | F165: =F166 -> 780.3
A166: Субсидии на возмещение недополученных доходов и (или) возмещение фактически понесенных затрат в связи с производством (реализацией) товаров, выполнением работ, оказанием услуг | B166: 05 | C166: 03 | D166: 91.1.00.60105 | E166: 811 | F166: =3697.4-2917.1 -> 780.3 | H166: 2917,1+780,3-2917,1
A167: КУЛЬТУРА, КИНЕМАТОГРАФИЯ | B167: 08 | C167: 00 | D167: 00.0.00.00000 | E167: 000 | F167: =F168 -> 16047.2
A168: КУЛЬТУРА | B168: 08 | C168: 01 | D168: 91.0.00.00000 | E168: 000 | F168: =F169+F175+F182 -> 16047.2
A169: Непрограммные расходы органов местного самоуправления | B169: 08 | C169: 01 | D169: 91.1.00.00000 | E169: 000 | F169: =F170 -> 11224.0
A170: Осуществление органами местного самоуправления полномочий местного значения поселения | B170: 08 | C170: 01 | D170: 91.1.00.60002 | E170: 000 | F170: =F171 -> 11224.0
A171: Расходы на выплату персоналу в целях обеспечения выполнения функций государственными (муниципальными) органами, казенными учреждениями, органами управления государственными внебюджетными фондами | B171: 08 | C171: 01 | D171: 91.1.00.60002 | E171: 100 | F171: =F172 -> 11224.0
A172: Расходы на выплату персоналу казенных учреждений | B172: 08 | C172: 01 | D172: 91.1.00.60002 | E172: 110 | F172: =F173+F174 -> 11224.0
A173: Фонд оплаты труда казенных учреждений и взносы по обязательному социальному страхованию | B173: 08 | C173: 01 | D173: 91.1.00.60002 | E173: 111 | F173: =10659-2088.1 -> 8570.9 | H173: 2240,5-2088,1
A174: Взносы по обязательному социальному страхованию на выплаты по оплате труда работников и иные выплаты работникам учреждений | B174: 08 | C174: 01 | D174: 91.1.00.60002 | E174: 119 | F174: =3219-565.9 -> 2653.1 | H174: 676.6
A175: Непрограммные расходы органов местного самоуправления | B175: 08 | C175: 01 | D175: 91.0.00.00000 | E175: 000 | F175: =F176 -> 4790.2
A176: Непрограммные расходы органов местного самоуправления за счет средств местного бюджета | B176: 08 | C176: 01 | D176: 91.1.00.00000 | E176: 000 | F176: 4790.2
A177: Осуществление органами местного самоуправления полномочий местного значения поселения | B177: 08 | C177: 01 | D177: 91.1.00.60000 | E177: 000 | F177: 4790.2
A178: Обеспечение деятельности в сфере установленных функции бюджетных, автономных и казенных учреждений | B178: 08 | C178: 01 | D178: 91.1.00.60002 | E178: 000 | F178: 4790.2
A179: Закупка товаров, работ и услуг для обеспечения государственных (муниципальных) нужд | B179: 08 | C179: 01 | D179: 91.1.00.60002 | E179: 200 | F179: 4790.2
A180: Иные закупки товаров, работ и услуг для обеспечения государственных (муниципальных) нужд | B180: 08 | C180: 01 | D180: 91.1.00.60002 | E180: 240 | F180: 4790.2
A181: Прочая закупка товаров, работ и услуг для обеспечения государственных (муниципальных) нужд | B181: 08 | C181: 01 | D181: 91.1.00.60002 | E181: 244 | F181: =3373.2+600-12+450+400-21 -> 4790.2 | H181: 450+400-21
A182: Иные бюджетные ассигнования | B182: 08 | C182: 01 | D182: 91.1.00.60002 | E182: 850 | F182: =F184+F183 -> 33.0
A183: Уплата прочих налогов, сборов | B183: 08 | C183: 01 | D183: 91.1.00.60002 | E183: 852 | F183: 8.0
A184: Уплата иных платежей | B184: 08 | C184: 01 | D184: 91.1.00.60002 | E184: 853 | F184: 25.0 | H184: 21
A185: СОЦИАЛЬНАЯ ПОЛИТИКА | B185: 10 | C185: 00 | D185: 00.0.00.00000 | E185: 000 | F185: =F186 -> 244.7
A186: Пенсионное обеспечение | B186: 10 | C186: 01 | D186: 00.0.00.00000 | E186: 000 | F186: 244.7
A187: Непрограммные расходы органов местного самоуправления | B187: 10 | C187: 01 | D187: 91.0.00.00000 | E187: 000 | F187: 244.7
A188: Непрограммные расходы органов местного самоуправления за счет средств местного бюджета | B188: 10 | C188: 01 | D188: 91.1.00.00000 | E188: 000 | F188: 244.7
A189: Осуществление органами местного самоуправления полномочий местного значения поселения | B189: 10 | C189: 01 | D189: 91.1.00.60000 | E189: 000 | F189: 244.7
A190: Доплаты к пенсиям муниципальных служащих | B190: 10 | C190: 01 | D190: 91.1.00.60018 | E190: 000 | F190: 244.7
A191: Социальное обеспечение и иные выплаты населению | B191: 10 | C191: 01 | D191: 91.1.00.60018 | E191: 300 | F191: 244.7
A192: Публичные нормативные социальные выплаты гражданам | B192: 10 | C192: 01 | D192: 91.1.00.60018 | E192: 310 | F192: 244.7
A193: Иные пенсии, социальные доплаты к пенсиям | B193: 10 | C193: 01 | D193: 91.1.00.60018 | E193: 312 | F193: 244.7
A194: ФИЗИЧЕСКАЯ КУЛЬТУРА И СПОРТ | B194: 11 | C194: 00 | D194: 00.0.00.00000 | E194: 000 | F194: =F195 -> 
A195: Другие вопросы в области физической культуры и спорта | B195: 11 | C195: 05 | D195: 00.0.00.00000 | E195: 000
A196: Непрограммные расходы органов местного самоуправления | B196: 11 | C196: 05 | D196: 91.0.00.00000 | E196: 000
A197: Непрограммные расходы органов местного самоуправления за счет средств местного бюджета | B197: 11 | C197: 05 | D197: 91.1.00.00000 | E197: 000
A198: Осуществление органами местного самоуправления полномочий местного значения поселения | B198: 11 | C198: 05 | D198: 91.1.00.60000 | E198: 000
A199: Обеспечение деятельности в сфере установленных функции бюджетных, автономных и казенных учреждений | B199: 11 | C199: 05 | D199: 91.1.00.60002 | E199: 000
A200: Закупка товаров, работ и услуг для обеспечения государственных (муниципальных) нужд | B200: 11 | C200: 05 | D200: 91.1.00.60002 | E200: 200
A201: Иные закупки товаров, работ и услуг для обеспечения государственных (муниципальных) нужд | B201: 11 | C201: 05 | D201: 91.1.00.60002 | E201: 240 | F201: =#REF! -> 
A202: МЕЖБЮДЖЕТНЫЕ ТРАНСФЕРТЫ БЮДЖЕТАМ БЮДЖЕТНОЙ СИСТЕМЫ РФ | B202: 14 | C202: 00 | D202: 00.0.00.00000 | E202: 000 | F202: =F203 -> 259.2
... 14 more rows
